bitfinex/quotes_BTCUSD_20250320
["timestamp","ask_amount","ask_price","bid_price","bid_amount"]
[1742500682537,0.3093386,84327.0,84326.0,1.06477245]
[1742500682943,0.3093386,84327.0,84326.0,1.07696312]
[1742500683142,0.5583676,84327.0,84326.0,0.58709409]
[1742500683344,0.5533676,84327.0,84326.0,0.72021409]
[1742500683570,0.55684028,84327.0,84326.0,0.72021409]
[1742500683764,0.55984028,84327.0,84326.0,0.72021409]
[1742500684166,0.55984028,84327.0,84326.0,0.58709409]
[1742500684363,0.55284028,84327.0,84326.0,0.44044542]
[1742500684735,0.55584028,84327.0,84326.0,0.44044542]
[1742500685566,0.55484028,84327.0,84326.0,0.44044542]
[1742500685740,0.55584028,84327.0,84326.0,0.44044542]
[1742500686173,0.55484028,84327.0,84326.0,0.44044542]
[1742500687015,0.55284028,84327.0,84326.0,0.44044542]
[1742500687402,0.55884028,84327.0,84326.0,0.44044542]
[1742500687813,0.55584028,84327.0,84326.0,0.44044542]
[1742500688194,0.55984028,84327.0,84326.0,0.44044542]
[1742500688791,0.01081128,84327.0,84326.0,0.57356542]
[1742500688997,0.2445096,84327.0,84326.0,0.70596542]
[1742500689226,0.54798154,84327.0,84326.0,0.70596542]
[1742500689422,0.31081054,84327.0,84326.0,0.70596542]
[1742500689592,0.54798154,84327.0,84326.0,0.70596542]
[1742500689821,0.31081054,84327.0,84326.0,0.70596542]
[1742500690027,0.55983954,84327.0,84326.0,0.70596542]
[1742500691454,0.55983954,84327.0,84326.0,0.44044542]
[1742500702538,0.69395542,84327.0,84326.0,0.44044542]
[1742500703380,0.68995542,84327.0,84326.0,0.44044542]
[1742500703777,0.69195542,84327.0,84326.0,0.44044542]
[1742500703978,0.69695542,84327.0,84326.0,0.44044542]
[1742500706646,0.3,84324.0,84323.0,0.10198529]
[1742500706849,0.3,84324.0,84323.0,0.10210948]
[1742500706850,0.68662301,84324.0,84323.0,0.10210948]
[1742500707851,0.56704798,84324.0,84323.0,0.10210948]
[1742500708396,0.57204798,84324.0,84323.0,0.10210948]
[1742500709329,0.549097,84304.0,84303.0,4.7e-07]
[1742500709550,0.56364985,84300.0,84299.0,0.0003384]
[1742500709954,0.56711798,84300.0,84299.0,0.00038273]
[1742500710173,0.55257713,84300.0,84299.0,0.00038273]
[1742500710627,0.56546391,84300.0,84299.0,0.00038273]
[1742500710857,0.57046391,84300.0,84299.0,0.00038273]
[1742500711333,0.57546391,84300.0,84299.0,0.00038273]
[1742500714354,0.57546391,84300.0,84299.0,0.13354273]
[1742500715158,0.57546391,84300.0,84299.0,0.00038273]
[1742500720165,0.59000476,84300.0,84299.0,0.00038273]
[1742500725316,0.58500476,84300.0,84299.0,0.00038273]
[1742500725494,0.69957979,84300.0,84299.0,0.00038273]
[1742500725693,0.70457979,84300.0,84299.0,0.00038273]
[1742500726058,0.70957979,84300.0,84299.0,0.00038273]
[1742500726808,0.70457979,84300.0,84299.0,0.00038273]
[1742500727145,0.69957979,84300.0,84299.0,0.00038273]
[1742500727356,0.70457979,84300.0,84299.0,0.00038273]
[1742500728211,0.70957979,84300.0,84299.0,0.00038273]
[1742500728437,0.59000476,84300.0,84299.0,0.00038273]
[1742500728588,0.59475676,84300.0,84299.0,0.00038273]
[1742500729273,0.58975676,84300.0,84299.0,0.00038273]
[1742500729498,0.59475676,84300.0,84299.0,0.00038273]
[1742500730327,0.58021591,84300.0,84299.0,0.00038273]
[1742500730529,0.57546391,84300.0,84299.0,0.00038273]
[1742500731511,0.57046391,84300.0,84299.0,0.00038273]
[1742500732012,0.57546391,84300.0,84299.0,0.00038273]
[1742500737591,0.59000476,84300.0,84299.0,0.00038273]
[1742500739759,0.70957979,84300.0,84299.0,0.00038273]
[1742500739965,0.75797979,84300.0,84299.0,0.00038273]
[1742500740384,0.75797979,84300.0,84299.0,7.3e-07]
[1742500740593,0.75797979,84300.0,84292.0,0.0003384]
[1742500740594,0.620261,84295.0,84292.0,1.3e-07]
[1742500740799,0.56367085,84293.0,84292.0,1.3e-07]
[1742500741012,0.68324588,84293.0,84292.0,1.3e-07]
[1742500741188,0.68667585,84293.0,84292.0,1.3e-07]
[1742500741570,0.69142885,84293.0,84292.0,1.3e-07]
[1742500742303,0.69642885,84293.0,84292.0,1.3e-07]
[1742500742760,0.70142885,84293.0,84292.0,1.3e-07]
[1742500745088,0.78402885,84293.0,84287.0,7e-07]
[1742500745341,0.549189,84273.0,84272.0,0.0001693]
[1742500745722,0.56372985,84273.0,84272.0,0.0001693]
[1742500745920,0.56715982,84273.0,84272.0,0.0001693]
[1742500746372,0.56373285,84272.0,84271.0,9.6e-07]
[1742500746581,0.56374785,84267.0,84266.0,2.6e-07]
[1742500746767,0.68332288,84267.0,84266.0,2.6e-07]
[1742500747070,0.68675285,84267.0,84266.0,2.6e-07]
[1742500747834,0.70535844,84267.0,84266.0,2.6e-07]
[1742500748239,0.56377985,84256.0,84255.0,7.5e-07]
[1742500748414,0.68335488,84256.0,84255.0,0.00041604]
[1742500748615,0.82006485,84256.0,84255.0,0.00041604]
[1742500749019,0.86199573,84256.0,84255.0,4e-08]
[1742500749610,0.549275,84244.0,84243.0,6e-07]
[1742500749813,0.81671088,84244.0,84243.0,0.00012529]
[1742500750200,0.69969454,84244.0,84243.0,0.00012529]
[1742500750368,0.58011951,84244.0,84243.0,0.00012529]
[1742500751365,0.70469454,84244.0,84243.0,0.00012529]
[1742500751788,0.70944954,84244.0,84243.0,0.00012529]
[1742500753039,0.71344954,84244.0,84243.0,0.00012529]
[1742500754375,0.31235645,84244.0,84243.0,0.00012529]
[1742500754575,0.01235645,84244.0,84243.0,0.00012529]
[1742500754775,0.02422645,84244.0,84243.0,0.00012529]
[1742500755018,0.32422645,84244.0,84243.0,0.00012529]
[1742500755449,0.32422645,84244.0,84243.0,0.00029459]
[1742500755856,0.01235645,84244.0,84243.0,0.24957259]
[1742500756054,0.009,84244.0,84243.0,0.46914762]
[1742500756509,0.009,84244.0,84243.0,0.13393459]
[1742500756708,0.005,84244.0,84243.0,0.26537962]
[1742500757160,0.009,84244.0,84243.0,0.13393459]
[1742500757505,0.005,84244.0,84243.0,0.13393459]
[1742500757752,0.005,84244.0,84243.0,0.14580459]
[1742500757952,0.011869,84251.0,84243.0,0.23769959]
[1742500758327,0.249273,84245.0,84244.0,0.13384]
[1742500758517,0.01187,84244.0,84243.0,0.00029459]
[1742500758669,0.01187,84244.0,84243.0,0.13413459]
[1742500758872,0.01522645,84244.0,84243.0,0.13413459]
[1742500759074,0.00335645,84244.0,84243.0,0.13417459]
[1742500759500,0.00335645,84244.0,84243.0,0.37158259]
[1742500760121,0.00435645,84244.0,84243.0,0.37158259]
[1742500760340,0.00335645,84244.0,84243.0,0.37158259]
[1742500760493,0.00335645,84244.0,84243.0,0.38345259]
[1742500760694,0.002,84244.0,84243.0,0.50302762]
[1742500760921,0.002,84244.0,84243.0,0.58232762]
[1742500761117,0.3,84255.0,84243.0,0.58232762]
[1742500761320,0.3,84255.0,84254.0,0.237377]
[1742500761481,0.00335645,84254.0,84251.0,0.011869]
[1742500761872,0.3,84260.0,84249.0,0.011869]
[1742500761873,0.3,84258.0,84255.0,0.237372]
[1742500762007,0.00335645,84257.0,84255.0,0.237372]
[1742500762208,0.55259345,84257.0,84256.0,0.13396]
[1742500763111,0.30535645,84257.0,84256.0,0.371331]
[1742500763321,0.30535645,84257.0,84256.0,0.13396]
[1742500763501,0.00335645,84257.0,84256.0,0.63327403]
[1742500763704,0.00535645,84257.0,84256.0,0.49931403]
[1742500763900,0.239369,84257.0,84256.0,0.26458]
[1742500764165,0.237391,84249.0,84248.0,0.64454]
[1742500764379,0.237391,84249.0,84248.0,0.77866]
[1742500764521,0.011869,84252.0,84248.0,0.77866]
[1742500764522,0.249253,84252.0,84248.0,0.77866]
[1742500764731,0.016868,84257.0,84248.0,0.77866]
[1742500764732,0.011868,84256.0,84249.0,0.237391]
[1742500764934,0.00337128,84251.0,84248.0,1.016048]
[1742500765293,0.002,84257.0,84252.0,0.237383]
[1742500765509,0.002,84257.0,84256.0,0.249239]
[1742500765741,0.23734,84268.0,84261.0,0.237357]
[1742500765956,0.001,84257.0,84248.0,0.74454]
[1742500766165,0.237383,84252.0,84249.0,0.13404]
[1742500766378,0.249245,84254.0,84249.0,0.13404]
[1742500766586,0.237382,84254.0,84249.0,0.237388]
[1742500766805,0.237382,84254.0,84248.0,0.881934]
[1742500766806,0.237391,84249.0,84248.0,0.64454]
[1742500767002,0.237391,84249.0,84248.0,0.56484]
[1742500767003,0.24926,84249.0,84248.0,0.56484]
[1742500767350,0.24926,84249.0,84248.0,0.69888]
[1742500767493,0.237391,84249.0,84248.0,0.69888]
[1742500767688,0.237394,84248.0,84246.0,0.045]
[1742500767888,0.237394,84248.0,84243.0,0.00029459]
[1742500767889,0.01187,84244.0,84243.0,0.00029459]
[1742500768141,0.249275,84244.0,84243.0,0.13429459]
[1742500768315,0.3,84250.0,84243.0,0.13429459]
[1742500768515,0.3,84246.0,84243.0,0.13429459]
[1742500769128,0.3,84246.0,84243.0,0.00029459]
[1742500769369,0.3,84246.0,84245.0,0.237402]
[1742500769602,0.24926,84250.0,84249.0,0.237391]
[1742500769603,0.002,84250.0,84249.0,0.237391]
[1742500769794,0.237378,84254.0,84250.0,0.237386]
[1742500769946,0.237375,84255.0,84249.0,0.317188]
[1742500769947,0.249243,84255.0,84249.0,0.317188]
[1742500770147,0.011868,84257.0,84250.0,0.237386]
[1742500770408,0.3,84259.0,84251.0,0.249254]
[1742500770787,0.237363,84259.0,84251.0,0.249254]
[1742500770973,0.011867,84266.0,84251.0,0.249254]
[1742500771173,0.3,84264.0,84251.0,0.298654]
[1742500771508,0.0023388,84252.0,84251.0,0.420665]
[1742500772059,0.2397218,84252.0,84251.0,0.20744686]
[1742500772304,0.00571008,84252.0,84251.0,0.13388]
[1742500772917,0.00671008,84252.0,84251.0,0.237385]
[1742500773129,0.00471008,84252.0,84251.0,0.371225]
[1742500773359,0.00371008,84252.0,84251.0,0.371225]
[1742500773537,0.0003388,84252.0,84251.0,0.237385]
[1742500773839,0.2377228,84252.0,84251.0,0.13384]
[1742500774039,0.011869,84251.0,84247.0,0.02419776]
[1742500774341,0.00336965,84250.0,84248.0,0.371232]
[1742500774702,0.2377228,84252.0,84248.0,0.371232]
[1742500775045,0.00336965,84251.0,84248.0,0.371232]
[1742500775253,0.24075565,84251.0,84248.0,0.371232]
[1742500775443,0.24075565,84251.0,84248.0,0.13384]
[1742500775687,0.24926,84249.0,84248.0,0.13384]
[1742500776126,0.249275,84244.0,84243.0,0.00029459]
[1742500776324,0.00336965,84249.0,84246.0,0.237399]
[1742500776552,0.53739,84250.0,84244.0,0.237402]
[1742500776754,0.24076365,84248.0,84244.0,0.237402]
[1742500776955,0.237394,84248.0,84245.0,0.237402]
[1742500777258,0.01523865,84247.0,84243.0,0.13405459]
[1742500777409,0.00336965,84247.0,84246.0,0.237399]
[1742500777934,0.005,84250.0,84249.0,0.237391]
[1742500778411,0.00836965,84250.0,84249.0,0.237391]
[1742500778952,0.00336965,84250.0,84248.0,0.237393]
[1742500779093,0.00336965,84250.0,84249.0,0.237391]
[1742500779293,0.002,84248.0,84247.0,0.35697103]
[1742500779500,0.00536965,84248.0,84247.0,0.35697103]
[1742500779729,0.00336965,84248.0,84247.0,0.35697203]
[1742500780396,0.00336965,84248.0,84247.0,0.49073203]
[1742500780593,0.001,84248.0,84243.0,0.00029459]
[1742500780831,0.249275,84244.0,84243.0,0.00029459]
[1742500781039,0.549275,84244.0,84243.0,0.00029459]
[1742500781519,0.68676053,84244.0,84243.0,0.00029459]
[1742500783058,0.69176053,84244.0,84243.0,0.00029459]
[1742500783638,0.69676053,84244.0,84243.0,0.00029459]
[1742500784624,0.81956053,84244.0,84243.0,0.00029459]
[1742500785929,0.81456053,84244.0,84243.0,0.00029459]
[1742500786158,0.77276053,84244.0,84243.0,0.00029459]
[1742500787082,0.76776053,84244.0,84243.0,0.00029459]
[1742500787343,0.77276053,84244.0,84243.0,0.00029459]
[1742500789280,0.56264465,84244.0,84243.0,0.00029459]
[1742500789485,0.26264465,84244.0,84243.0,0.00029459]
[1742500789882,0.56264465,84244.0,84243.0,0.00029459]
[1742500790086,0.25764465,84244.0,84243.0,0.00029459]
[1742500790371,0.55764465,84244.0,84243.0,0.00029459]
[1742500790592,0.56264465,84244.0,84243.0,0.00029459]
[1742500791012,0.01336965,84244.0,84243.0,0.00029459]
[1742500791159,0.56298305,84244.0,84243.0,0.00029459]
[1742500791364,0.55798305,84244.0,84243.0,0.00029459]
[1742500791563,0.55298305,84244.0,84243.0,0.00029459]
[1742500791776,0.54611305,84244.0,84243.0,0.00029459]
[1742500791979,0.55798305,84244.0,84243.0,0.13405459]
[1742500792359,0.31270805,84244.0,84243.0,0.37146259]
[1742500792557,0.32457805,84244.0,84243.0,0.13405459]
[1742500792935,0.56198305,84244.0,84243.0,0.13405459]
[1742500793149,0.55698305,84244.0,84243.0,0.13405459]
[1742500793362,0.30770805,84244.0,84243.0,0.13405459]
[1742500793565,0.009,84244.0,84243.0,0.00029459]
[1742500793774,0.011866,84269.0,84251.0,0.349254]
[1742500793943,0.011868,84260.0,84251.0,0.53806003]
[1742500794155,0.237363,84259.0,84251.0,0.54992903]
[1742500794368,0.237365,84259.0,84251.0,0.552285]
[1742500794600,0.237339,84268.0,84251.0,0.67186003]
[1742500794777,0.237344,84266.0,84251.0,0.68372903]
[1742500795003,0.0023388,84252.0,84251.0,0.68372903]
[1742500795648,8e-07,84252.0,84251.0,0.73252903]
[1742500796261,8e-07,84252.0,84251.0,0.59872903]
[1742500796470,8e-07,84252.0,84251.0,0.73276903]
[1742500796669,0.0030008,84252.0,84251.0,0.73276903]
[1742500797102,8e-07,84252.0,84251.0,0.73276903]
[1742500797439,0.0010008,84252.0,84251.0,0.63272903]
[1742500797684,0.001,84252.0,84251.0,0.63272903]
[1742500798061,0.001,84252.0,84251.0,0.63372903]
[1742500798349,0.001,84252.0,84251.0,0.73372903]
[1742500798795,0.001,84252.0,84251.0,0.59972903]
[1742500799211,0.001,84252.0,84251.0,0.13496]
[1742500799412,0.001,84252.0,84251.0,0.372345]
[1742500799620,0.00425728,84252.0,84251.0,0.384174]
[1742500799767,0.001,84252.0,84251.0,0.50374903]
[1742500799970,0.237353,84263.0,84257.0,0.249235]
[1742500799971,0.237352,84263.0,84257.0,0.249235]
[1742500800215,0.011868,84259.0,84251.0,0.13492]
[1742500800371,0.011867,84263.0,84252.0,0.237383]
[1742500800372,0.249219,84263.0,84252.0,0.237383]
[1742500800584,0.249219,84263.0,84251.0,0.384174]
[1742500800585,0.011868,84260.0,84251.0,0.384174]
[1742500800788,0.249239,84256.0,84252.0,0.237382]
[1742500801029,0.011868,84257.0,84253.0,0.23738]
[1742500801204,0.237372,84256.0,84253.0,0.237379]
[1742500801406,0.011868,84259.0,84253.0,0.249248]
[1742500801639,0.237374,84255.0,84252.0,0.26094056]
[1742500801853,0.237373,84256.0,84252.0,0.26094056]
[1742500802056,0.237374,84255.0,84252.0,0.26094056]
[1742500802206,0.003,84263.0,84261.0,0.237356]
[1742500802411,0.0008,84256.0,84255.0,0.237373]
[1742500802616,0.0008,84256.0,84255.0,0.36881603]
[1742500802797,0.0008,84256.0,84253.0,0.011869]
[1742500802798,0.011869,84248.0,84243.0,0.23770259]
[1742500803076,0.237376,84255.0,84251.0,0.237385]
[1742500803528,0.0008,84256.0,84252.0,0.13412]
[1742500803965,0.237374,84255.0,84252.0,0.13412]
[1742500804184,0.237377,84254.0,84252.0,0.13412]
[1742500804414,0.23738,84253.0,84252.0,0.13412]
[1742500805547,0.0008,84256.0,84252.0,0.13412]
[1742500805746,0.012668,84256.0,84252.0,0.13412]
[1742500805943,0.014668,84256.0,84252.0,0.13412]
[1742500806121,0.237377,84254.0,84252.0,0.13412]
[1742500806565,0.0028,84256.0,84252.0,0.13412]
[1742500806767,0.0028,84256.0,84254.0,0.237377]
[1742500806976,0.237379,84254.0,84252.0,0.13412]
[1742500807181,0.23738,84253.0,84252.0,0.13412]
[1742500807789,0.249263,84248.0,84247.0,0.1]
[1742500807993,0.249263,84248.0,84242.0,0.0782]
[1742500807994,0.249275,84244.0,84238.0,0.26157151]
[1742500808221,0.249275,84244.0,84238.0,0.02415051]
[1742500808418,0.249275,84244.0,84243.0,0.13445459]
[1742500808574,0.237403,84245.0,84243.0,0.13445459]
[1742500808781,0.237405,84244.0,84243.0,0.13445459]
[1742500808986,0.249275,84244.0,84243.0,0.13445459]
[1742500809921,0.250275,84244.0,84243.0,0.13445459]
[1742500810433,0.252275,84244.0,84243.0,0.13445459]
[1742500812468,0.252275,84244.0,84243.0,0.00029459]
[1742500812673,0.252275,84244.0,84243.0,0.13433459]
[1742500813727,0.552275,84244.0,84243.0,0.13433459]
[1742500815279,0.552275,84244.0,84243.0,0.00029459]
[1742500815503,0.630675,84244.0,84243.0,0.00029459]
[1742500815707,0.64521585,84244.0,84243.0,0.00029459]
[1742500815910,0.552275,84244.0,84243.0,0.00029459]
[1742500816283,0.549275,84244.0,84243.0,0.00029459]
[1742500816702,0.552275,84244.0,84243.0,0.00029459]
[1742500817084,0.549275,84244.0,84243.0,0.00029459]
[1742500818142,0.551275,84244.0,84243.0,0.00029459]
[1742500818604,0.55270373,84244.0,84243.0,0.00029459]
[1742500818810,0.55670373,84244.0,84243.0,0.00029459]
[1742500819364,0.56170373,84244.0,84243.0,0.00029459]
[1742500824847,0.54983373,84244.0,84243.0,0.00029459]
[1742500825020,0.56170373,84244.0,84243.0,0.00029459]
[1742500827744,0.56250373,84244.0,84243.0,0.00029459]
[1742500828288,0.56250373,84244.0,84243.0,0.23770259]
[1742500828289,0.31322873,84244.0,84243.0,0.23770259]
[1742500829121,0.31322873,84244.0,84243.0,0.00029459]
[1742500830003,0.01322873,84244.0,84243.0,0.23770259]
[1742500830420,0.0098,84244.0,84243.0,0.23770259]
[1742500830791,0.01321159,84244.0,84243.0,0.24957259]
[1742500831001,0.0098,84244.0,84243.0,0.44904762]
[1742500831207,0.0003384,84252.0,84251.0,0.237385]
[1742500831409,0.0003384,84252.0,84251.0,0.371105]
[1742500832470,0.00374999,84252.0,84251.0,0.371105]
[1742500832675,0.0033384,84252.0,84251.0,0.371105]
[1742500832786,0.00674999,84252.0,84251.0,0.371105]
[1742500832994,0.0033384,84252.0,84251.0,0.50254903]
[1742500833219,0.0033384,84252.0,84251.0,0.54944903]
[1742500833478,0.0073384,84252.0,84251.0,0.54944903]
[1742500833692,0.0073384,84252.0,84251.0,0.57288817]
[1742500833897,0.0073384,84252.0,84251.0,0.58572539]
[1742500834107,0.0073384,84252.0,84251.0,0.66392539]
[1742500834569,0.0043384,84252.0,84251.0,0.66392539]
[1742500834805,0.0043384,84252.0,84251.0,0.65108817]
[1742500834994,0.0023384,84252.0,84251.0,0.65108817]
[1742500835198,0.0033384,84252.0,84251.0,0.65108817]
[1742500835412,0.0033384,84252.0,84251.0,0.63917917]
[1742500835615,0.0033384,84252.0,84251.0,0.15723914]
[1742500835819,0.0003384,84252.0,84251.0,0.39462414]
[1742500836206,0.00376593,84252.0,84251.0,0.39462414]
[1742500836449,0.0003384,84252.0,84251.0,0.39462414]
[1742500836649,0.0013384,84252.0,84251.0,0.39462414]
[1742500837337,0.00476593,84252.0,84251.0,0.39462414]
[1742500837935,0.00476593,84252.0,84251.0,0.40649314]
[1742500838343,0.0013384,84252.0,84251.0,0.40649314]
[1742500839584,0.0013384,84252.0,84251.0,0.39462414]
[1742500841069,0.0013384,84252.0,84251.0,0.40649314]
[1742500841814,0.0013384,84252.0,84251.0,0.39462414]
[1742500842008,0.0013384,84252.0,84251.0,0.40649314]
[1742500842862,0.0013384,84252.0,84251.0,0.27269314]
[1742500843066,0.0013384,84252.0,84251.0,0.39434414]
[1742500843237,0.0013384,84252.0,84251.0,0.40621314]
[1742500843658,0.0013384,84252.0,84251.0,0.39434414]
[1742500844753,0.0013384,84252.0,84251.0,0.26082414]
[1742500844971,0.0013384,84252.0,84251.0,0.39426414]
[1742500845831,0.00476593,84252.0,84251.0,0.39426414]
[1742500847442,0.00476593,84252.0,84251.0,0.40613314]
[1742500847646,0.0013384,84252.0,84251.0,0.40613314]
[1742500852894,0.0013384,84252.0,84251.0,0.52570817]
[1742500853313,0.0013384,84252.0,84251.0,0.75060817]
[1742500853475,0.0013384,84252.0,84251.0,1.20384077]
[1742500854052,0.0013384,84252.0,84251.0,1.20884077]
[1742500854053,4e-07,84252.0,84251.0,1.20884077]
[1742500854250,4e-07,84252.0,84251.0,2.24838162]
[1742500854665,0.237273,84291.0,84285.0,0.011864]
[1742500854909,0.237273,84291.0,84288.0,0.237279]
[1742500854910,0.00343771,84290.0,84288.0,0.237279]
[1742500855115,0.237276,84290.0,84286.0,0.382551]
[1742500855311,0.237282,84288.0,84286.0,0.1334]
[1742500855515,0.237284,84287.0,84286.0,0.1334]
[1742500855669,0.237282,84288.0,84286.0,0.1334]
[1742500855892,0.24072171,84287.0,84286.0,0.1334]
[1742500856298,0.00343771,84287.0,84286.0,0.1334]
[1742500856935,0.24072171,84287.0,84286.0,0.1334]
[1742500857136,0.237298,84282.0,84281.0,0.56476]
[1742500857333,0.249162,84282.0,84281.0,0.56476]
[1742500857691,0.25259971,84282.0,84281.0,0.6982]
[1742500858699,0.25359971,84282.0,84281.0,0.6982]
[1742500858902,0.25559971,84282.0,84281.0,0.6982]
[1742500860534,0.25559971,84282.0,84281.0,0.56476]
[1742500860779,0.249231,84259.0,84258.0,0.56468]
[1742500861013,0.237363,84259.0,84258.0,0.69828469]
[1742500861315,0.24083829,84259.0,84258.0,0.69828469]
[1742500861550,0.24083829,84259.0,84258.0,0.7218376]
[1742500862547,0.25270629,84259.0,84258.0,0.7218376]
[1742500863527,0.00347529,84259.0,84258.0,0.7218376]
[1742500863817,0.00347529,84259.0,84258.0,0.7228376]
[1742500864016,0.00347529,84259.0,84258.0,0.69928469]
[1742500864251,0.237363,84259.0,84258.0,0.69928469]
[1742500864489,0.25270629,84259.0,84258.0,0.69928469]
[1742500865756,0.25270629,84259.0,84258.0,0.69932469]
[1742500867490,0.00347529,84259.0,84258.0,0.69932469]
[1742500867733,0.00347529,84259.0,84258.0,0.93669069]
[1742500867938,0.00347529,84259.0,84258.0,0.94855869]
[1742500868147,0.549218,84264.0,84261.0,0.237357]
[1742500868351,0.537351,84264.0,84261.0,0.237357]
[1742500868556,0.537351,84264.0,84260.0,0.237358]
[1742500868557,0.237352,84263.0,84260.0,0.237358]
[1742500868770,0.237347,84265.0,84261.0,0.011867]
[1742500868960,0.3,84264.0,84260.0,0.237357]
[1742500869189,0.3,84264.0,84261.0,0.237357]
[1742500869394,0.550216,84264.0,84258.0,0.69832469]
[1742500869598,0.237355,84262.0,84258.0,0.93569069]
[1742500869800,0.237354,84263.0,84258.0,0.69832469]
[1742500869982,0.237354,84263.0,84259.0,0.23736]
[1742500870765,0.237354,84263.0,84260.0,0.237358]
[1742500870965,0.001,84264.0,84260.0,0.23736]
[1742500871402,0.001,84264.0,84263.0,0.237352]
[1742500871577,0.3,84265.0,84263.0,0.237352]
[1742500872458,0.537342,84267.0,84263.0,0.237352]
[1742500872824,0.011867,84263.0,84258.0,0.69832469]
[1742500873051,0.23736,84261.0,84258.0,0.69832469]
[1742500873611,0.249222,84262.0,84258.0,0.93568969]
[1742500873816,0.237363,84259.0,84258.0,0.69832469]
[1742500874420,0.249231,84259.0,84258.0,0.69832469]
[1742500875263,0.249231,84259.0,84258.0,0.13464469]
[1742500879099,0.011867,84263.0,84258.0,0.13464469]
[1742500879100,0.011866,84269.0,84259.0,0.011868]
[1742500879306,0.3,84267.0,84263.0,0.23735]
[1742500879522,0.3,84267.0,84266.0,0.237343]
[1742500879766,0.2376384,84282.0,84271.0,0.011866]
[1742500879963,0.0003384,84282.0,84280.0,0.237302]
[1742500880170,0.011865,84280.0,84274.0,0.237321]
[1742500880390,0.3,84281.0,84279.0,0.237304]
[1742500880580,0.2376374,84282.0,84272.0,0.13328]
[1742500880581,0.011865,84280.0,84272.0,0.13328]
[1742500880777,0.011865,84278.0,84274.0,0.23732]
[1742500881119,0.0122024,84282.0,84274.0,0.249184]
[1742500881305,0.3,84281.0,84279.0,0.237305]
[1742500881461,0.237306,84280.0,84277.0,0.23731]
[1742500881667,0.24275367,84280.0,84278.0,0.237308]
[1742500881872,0.00344767,84280.0,84279.0,0.237307]
[1742500882095,0.00344767,84280.0,84279.0,0.249172]
[1742500882441,0.00344767,84280.0,84279.0,0.237307]
[1742500882658,0.0023384,84282.0,84281.0,0.237301]
[1742500882860,0.0023384,84282.0,84281.0,0.36874103]
[1742500884006,0.0003384,84282.0,84281.0,0.36874103]
[1742500884635,0.0033384,84282.0,84281.0,0.36874103]
[1742500884858,0.0033384,84282.0,84281.0,0.35687603]
[1742500885110,0.0043384,84282.0,84281.0,0.35687603]
[1742500885721,0.00481103,84282.0,84281.0,0.35687603]
[1742500885921,0.0033384,84282.0,84281.0,0.35687603]
[1742500887475,0.0033384,84282.0,84281.0,0.36874103]
[1742500891240,0.0013384,84282.0,84281.0,0.36874103]
[1742500891854,0.0033384,84282.0,84281.0,0.36874103]
[1742500892067,0.0023384,84282.0,84281.0,0.36874103]
[1742500892278,0.0003384,84282.0,84281.0,0.36874103]
[1742500892461,0.0013384,84282.0,84281.0,0.36874103]
[1742500892621,0.0013384,84282.0,84281.0,0.36974103]
[1742500893020,0.0003384,84282.0,84281.0,0.36974103]
[1742500893751,0.0003384,84282.0,84281.0,0.50294103]
[1742500894533,0.0003384,84282.0,84281.0,0.50394103]
[1742500897598,0.0003384,84282.0,84281.0,0.50334103]
[1742500899711,0.0003384,84282.0,84281.0,0.50274103]
[1742500901338,0.0003384,84282.0,84281.0,0.50214103]
[1742500901526,0.0003384,84282.0,84281.0,1.06674103]
[1742500906089,0.0003384,84282.0,84281.0,1.19744103]
[1742500906665,0.0003384,84282.0,84281.0,1.89744103]
[1742500907291,0.0003384,84282.0,84281.0,1.90144103]
[1742500907496,0.0003384,84282.0,84281.0,1.90044103]
[1742500907704,0.0003384,84282.0,84281.0,1.90344103]
[1742500907909,0.0003384,84282.0,84281.0,1.90644103]
[1742500908082,4e-07,84282.0,84281.0,1.90044103]
[1742500908498,4e-07,84282.0,84281.0,1.90544103]
[1742500909109,4e-07,84282.0,84281.0,1.91144103]
[1742500909355,4e-07,84282.0,84281.0,1.91161013]
[1742500921014,4e-07,84282.0,84281.0,2.23661013]
[1742500921864,4e-07,84282.0,84281.0,2.23061013]
[1742500922279,4e-07,84282.0,84281.0,2.23661013]
[1742500923503,4e-07,84282.0,84281.0,2.24615098]
[1742500923715,4e-07,84282.0,84281.0,2.65995098]
[1742500923919,4e-07,84282.0,84281.0,2.66595098]
[1742500924736,4e-07,84282.0,84281.0,2.70276814]
[1742500925150,4e-07,84282.0,84281.0,2.66595098]
[1742500925977,4e-07,84282.0,84281.0,2.70276518]
[1742500926568,4e-07,84282.0,84281.0,2.66595098]
[1742500929003,0.0004,84300.0,84299.0,0.449112]
[1742500929362,0.0004,84300.0,84299.0,2.29637963]
[1742500929578,6e-07,84301.0,84300.0,0.249109]
[1742500929811,6e-07,84301.0,84300.0,0.37368403]
[1742500930247,0.00041563,84301.0,84300.0,1.07368403]
[1742500930894,0.00041563,84301.0,84300.0,1.09775861]
[1742500931070,0.00041563,84301.0,84300.0,1.66815861]
[1742500931276,0.00041563,84301.0,84300.0,1.67692023]
[1742500931483,0.00041563,84301.0,84300.0,1.68902098]
[1742500931779,0.00041563,84301.0,84300.0,1.69502098]
[1742500932027,0.00041563,84301.0,84300.0,1.69002098]
[1742500932226,0.00041563,84301.0,84300.0,1.82314098]
[1742500932443,0.00041563,84301.0,84300.0,1.92314098]
[1742500932661,0.00041563,84301.0,84300.0,1.91714098]
[1742500933018,0.00041563,84301.0,84300.0,2.32494098]
[1742500933214,0.00041563,84301.0,84300.0,2.33094098]
[1742500933986,0.00041563,84301.0,84300.0,2.33694098]
[1742500934376,0.00041563,84301.0,84300.0,2.33094098]
[1742500934629,0.00041563,84301.0,84300.0,2.32994098]
[1742500935015,0.00041563,84301.0,84300.0,2.33494098]
[1742500940580,0.00041563,84301.0,84300.0,2.20182098]
[1742500940787,0.00041563,84301.0,84300.0,2.33494098]
[1742500941631,0.00041563,84301.0,84300.0,2.20182098]
[1742500941773,0.00041563,84301.0,84300.0,2.33494098]
[1742500944954,0.00041563,84301.0,84300.0,2.33511018]
[1742500951212,6.3e-07,84301.0,84300.0,2.41251018]
[1742500953344,6.3e-07,84301.0,84300.0,2.44938671]
[1742500954203,6.3e-07,84301.0,84300.0,2.41251018]
[1742500954423,6.3e-07,84301.0,84300.0,2.4493885]
[1742500956483,6.3e-07,84301.0,84300.0,2.41251018]
[1742500956653,6.3e-07,84301.0,84300.0,2.44938269]
[1742500957518,0.00033903,84301.0,84300.0,2.44938269]
[1742500959333,0.00033903,84301.0,84300.0,2.45438269]
[1742500964308,0.00033903,84301.0,84300.0,2.44938269]